bitfinex-derivatives/quotes_ETHF0:USTF0_20250612
["timestamp","ask_amount","ask_price","bid_price","bid_amount"]
[1749700077995,1.8988,2775.1,2774.5,26.41291151]
[1749700078197,0.7207,2774.7,2774.5,26.41291151]
[1749700078393,0.7207,2774.6,2774.5,25.69220151]
[1749700078592,0.7207,2774.6,2774.5,26.92900151]
[1749700079092,3.9285,2774.6,2774.5,0.00540151]
[1749700084697,3.9285,2774.6,2774.5,0.06741871]
[1749700085093,3.2078,2774.9,2774.5,0.06741871]
[1749700085302,0.7207,2774.6,2774.5,0.06741871]
[1749700087297,0.5382,2774.7,2774.5,0.06741871]
[1749700087596,1.25889,2774.7,2774.6,6.8763]
[1749700087799,1.25889,2774.7,2774.6,22.447]
[1749700087995,0.7207,2774.6,2774.5,0.06741871]
[1749700089605,3.9285,2774.6,2774.5,0.06741871]
[1749700090001,0.72085,2774.0,2773.9,3.2078]
[1749700090501,0.7209,2773.8,2773.7,4.92]
[1749700090701,0.7209,2773.8,2773.7,22.446]
[1749700091503,0.7209,2773.8,2773.6,3.2078]
[1749700091703,0.7209,2773.8,2773.7,22.433]
[1749700092407,0.7209,2773.8,2773.7,22.428]
[1749700092905,0.72093,2773.7,2773.6,3.2078]
[1749700093107,0.72093,2773.7,2773.6,25.6258]
[1749700093502,0.72093,2773.7,2773.6,26.8112]
[1749700094104,0.72091,2773.8,2773.6,27.53214]
[1749700094301,0.00540151,2774.0,2773.6,26.8112]
[1749700094502,0.72093,2773.7,2773.6,3.2078]
[1749700094708,0.72093,2773.7,2773.6,25.6258]
[1749700095909,0.00540151,2774.0,2773.6,25.6258]
[1749700096209,0.72093,2773.7,2773.6,25.6258]
[1749700098811,0.00540151,2774.0,2773.6,25.6258]
[1749700099111,0.00540151,2774.0,2773.7,22.296]
[1749700099309,0.72088,2773.9,2773.8,0.72089]
[1749700099611,0.72088,2773.9,2773.8,24.29469]
[1749700099805,0.72088,2773.9,2773.8,23.5738]
[1749700100501,0.72627151,2774.0,2773.8,24.29468]
[1749700100704,0.72627151,2774.0,2773.9,0.72088]
[1749700100901,0.00540151,2774.0,2773.6,3.2698172]
[1749700101106,0.7209,2773.8,2773.7,22.295]
[1749700101303,0.00540151,2774.0,2773.9,0.72088]
[1749700101907,0.00540151,2774.0,2773.9,1.98768]
[1749700102212,0.00540151,2774.0,2773.9,10.19548]
[1749700102407,0.00540151,2774.0,2773.9,4.4746]
[1749700102613,0.72625151,2774.0,2773.9,26.7706]
[1749700102813,0.72625151,2774.0,2773.9,23.5588]
[1749700103314,0.72625151,2774.0,2773.9,24.27968]
[1749700103610,0.72625151,2774.0,2773.9,22.295]
[1749700104013,0.72093,2773.7,2773.6,3.9907572]
[1749700104215,0.72093,2773.7,2773.6,26.2767572]
[1749700104507,0.00540151,2774.0,2773.6,3.2698172]
[1749700104714,0.72093,2773.7,2773.6,8.1118172]
[1749700104903,0.72093,2773.7,2773.6,25.5528172]
[1749700105411,0.72093,2773.7,2773.6,25.5478172]
[1749700105612,0.72093,2773.7,2773.6,3.2698172]
[1749700105814,0.72093,2773.7,2773.6,20.7008172]
[1749700106216,0.72093,2773.7,2773.6,3.2698172]
[1749700106610,0.72093,2773.7,2773.6,0.0620172]
[1749700107014,2.00192336,2773.7,2773.6,0.0620172]
[1749700107414,5.20972336,2773.7,2773.6,0.0620172]
[1749700107819,10.20972336,2773.7,2773.6,0.0620172]
[1749700108712,0.72101,2773.4,2773.3,17.416]
[1749700109512,0.7231,2773.5,2773.0,21.798]
[1749700109713,0.5386,2773.8,2773.7,0.72093]
[1749700109918,0.5386,2773.8,2773.7,22.96393]
[1749700110211,0.5386,2773.8,2773.6,3.2698172]
[1749700110410,0.5386,2773.8,2773.7,24.89873]
[1749700111419,1e-08,2773.8,2773.7,29.89873]
[1749700111619,0.00540151,2774.0,2773.9,0.72088]
[1749700111920,0.00540151,2774.0,2773.9,3.92868]
[1749700112109,0.00540151,2774.0,2773.9,8.92868]
[1749700112819,1.80156,2774.9,2773.9,10.01]
[1749700113024,1.28149221,2774.8,2774.3,0.72076]
[1749700113313,0.72072,2774.5,2774.4,22.247]
[1749700114122,0.72071,2774.6,2774.4,22.96775]
[1749700114416,0.72072,2774.5,2774.4,23.5104]
[1749700114817,0.72072,2774.5,2774.4,23.4934]
[1749700115413,0.72071,2774.6,2774.4,24.21415]
[1749700115822,0.00540151,2774.7,2774.4,23.4934]
[1749700116016,0.7207,2774.6,2774.4,24.21413]
[1749700116517,0.72072,2774.5,2774.4,23.4934]
[1749700116824,0.72071,2774.6,2774.4,24.21415]
[1749700117321,0.72072,2774.5,2774.4,23.4934]
[1749700118922,0.72071,2774.6,2774.4,24.21415]
[1749700119526,0.00540151,2774.7,2774.6,0.7207]
[1749700120222,0.00540151,2774.7,2774.6,1.9545]
[1749700120414,0.72607151,2774.7,2774.6,1.2338]
[1749700120620,0.00540151,2774.7,2774.6,1.9545]
[1749700120820,0.72607151,2774.7,2774.6,1.2338]
[1749700121222,0.72607151,2774.7,2774.6,1.9545]
[1749700122121,0.00540151,2774.7,2774.6,1.9545]
[1749700122528,0.72607151,2774.7,2774.6,24.1195]
[1749700122831,0.72607151,2774.7,2774.6,23.3988]
[1749700123028,0.7207,2774.6,2774.5,3.8958]
[1749700123227,0.7207,2774.6,2774.5,26.0528]
[1749700123428,0.7207,2774.6,2774.5,3.2078]
[1749700123825,0.00540151,2774.7,2774.5,22.154]
[1749700124023,0.7207,2774.6,2774.5,22.87471]
[1749700124725,0.7207,2774.6,2774.5,22.154]
[1749700124927,0.7207,2774.6,2774.5,22.87472]
[1749700125929,0.7207,2774.6,2774.5,22.154]
[1749700126131,0.7207,2774.6,2774.5,22.87472]
[1749700127030,0.7207,2774.6,2774.5,22.154]
[1749700127331,0.7207,2774.6,2774.5,22.87472]
[1749700128230,1.0076,2774.6,2774.5,22.87472]
[1749700128431,0.2869,2774.6,2774.5,22.87472]
[1749700129430,1.0076,2774.6,2774.5,22.87472]
[1749700130135,0.2869,2774.6,2774.5,22.87472]
[1749700131431,1.0076,2774.6,2774.5,0.7827372]
[1749700131634,1.0076,2774.6,2774.5,0.0620172]
[1749700131934,1.0076,2774.6,2774.5,22.0330172]
[1749700135829,1.0076,2774.6,2774.5,22.0240172]
[1749700136734,1.0076,2774.6,2774.5,22.0060172]
[1749700137536,2.2711,2774.6,2774.5,0.0620172]
[1749700137840,2.2711,2774.6,2774.5,17.2780172]
[1749700138531,3.61562854,2774.6,2774.5,17.2780172]
[1749700140239,2.35212854,2774.6,2774.5,17.2780172]
[1749700140428,1.63142854,2774.6,2774.5,17.9987372]
[1749700140742,1.63142854,2774.6,2774.5,21.2065372]
[1749700141340,1.63142854,2774.6,2774.5,22.4137372]
[1749700149350,1.63078033,2774.6,2774.5,22.4137372]
[1749700149651,3.2078,2775.5,2774.6,0.7207]
[1749700149853,0.72055,2775.2,2775.0,3.2078]
[1749700150053,0.72055,2775.2,2775.1,22.64654]
[1749700150451,0.72055,2775.2,2775.1,21.926]
[1749700151754,0.72055,2775.2,2775.1,22.64657]
[1749700151955,0.72055,2775.2,2775.1,21.926]
[1749700152356,0.72057,2775.1,2775.0,3.2078]
[1749700152557,0.72057,2775.1,2775.0,25.1308]
[1749700153054,0.72057,2775.1,2775.0,25.85136]
[1749700153356,0.00540151,2775.4,2775.1,0.72056]
[1749700153357,0.72056,2775.2,2775.1,0.72056]
[1749700153750,0.72057,2775.1,2775.0,22.64359]
[1749700154458,0.72057,2775.1,2774.4,0.00540151]
[1749700154459,0.7207,2774.6,2774.4,0.00540151]
[1749700154658,0.7207,2774.6,2774.5,17.2650172]
[1749700155147,0.7207,2774.6,2774.5,0.0620172]
[1749700155551,0.7207,2774.6,2774.5,17.2650172]
[1749700157063,0.72072,2774.5,2774.4,8.71e-06]
[1749700157252,1.89982,2774.5,2774.4,8.71e-06]
[1749700157559,6.89982,2774.5,2774.4,8.71e-06]
[1749700159360,1.89982,2774.5,2774.4,8.71e-06]
[1749700161074,0.72072,2774.5,2774.4,8.71e-06]
[1749700161371,0.8068,2774.8,2774.4,9.67600871]
[1749700161577,1.36475157,2774.7,2774.4,4.67600871]
[1749700161771,3.2078,2774.9,2774.5,2.0529172]
[1749700161972,1.36471857,2774.8,2774.6,17.204]
[1749700162277,1.36471857,2774.7,2774.6,17.9247]
[1749700162775,2.08538857,2774.7,2774.6,17.9247]
[1749700163074,2.08538857,2774.7,2774.6,17.204]
[1749700163471,0.7207,2774.6,2774.5,2.7736372]
[1749700163666,2.08541857,2774.6,2774.5,23.9329172]
[1749700163871,2.08541857,2774.6,2774.5,22.6994172]
[1749700164273,2.08541857,2774.6,2774.5,4.7380172]
[1749700164576,2.08541857,2774.6,2774.5,21.9420172]
[1749700164969,1.36471857,2774.6,2774.5,22.6627372]
[1749700165668,2.08541857,2774.6,2774.5,21.9420172]
[1749700166264,1.36471857,2774.6,2774.5,22.6627372]
[1749700166777,0.7207,2774.6,2774.5,22.6627372]
[1749700167779,0.72068,2774.7,2774.6,0.72069]
[1749700167971,0.7207,2774.6,2774.5,22.6627272]
[1749700168972,2.11927673,2774.6,2774.5,22.6627272]
[1749700169173,1.39857673,2774.6,2774.5,22.6627272]
[1749700169476,0.72068,2774.7,2774.6,0.7207]
[1749700169668,2.11940347,2774.7,2774.6,0.72068]
[1749700170274,0.7207,2774.6,2774.5,22.6627272]
[1749700170476,2.11943347,2774.6,2774.5,22.6627272]
[1749700170876,1.39873347,2774.6,2774.5,22.6627272]
[1749700171380,2.11943347,2774.6,2774.5,22.6627272]
[1749700171576,2.11943347,2774.6,2774.5,0.0620172]
[1749700174880,5.32723347,2774.6,2774.5,0.0620172]
[1749700175580,0.72072,2774.5,2774.4,8.71e-06]
[1749700175782,4.09785347,2774.5,2774.4,8.71e-06]
[1749700178179,2.92605347,2774.5,2774.4,8.71e-06]
[1749700178383,3.73065347,2774.5,2774.4,8.71e-06]
[1749700182688,5.02085347,2774.5,2774.4,8.71e-06]
[1749700183588,10.02085347,2774.5,2774.4,8.71e-06]
[1749700183786,12.17914394,2774.5,2774.4,8.71e-06]
[1749700184885,10.02085347,2774.5,2774.4,8.71e-06]
[1749700185491,12.17731521,2774.5,2774.4,8.71e-06]
[1749700187383,10.02085347,2774.5,2774.4,8.71e-06]
[1749700189292,12.17731521,2774.5,2774.4,8.71e-06]
[1749700189489,10.02085347,2774.5,2774.4,8.71e-06]
[1749700190188,10.02085347,2774.5,2774.4,0.06202591]
[1749700190382,10.02085347,2774.5,2773.6,4.674]
[1749700190383,0.72093,2773.7,2773.6,4.674]
[1749700190587,2.11966347,2773.7,2773.6,4.674]
[1749700194691,1.39873347,2773.7,2773.4,0.00540151]
[1749700194893,2.11967347,2773.7,2773.6,3.92876]
[1749700195292,2.11967347,2773.7,2773.6,3.2078]
[1749700195694,0.72096,2773.6,2773.5,1.92216]
[1749700195894,2.11969347,2773.6,2773.5,1.2012]
[1749700197497,0.72096,2773.6,2773.5,1.2012]
[1749700198502,0.72096,2773.6,2773.5,1.92218]
[1749700198696,0.72096,2773.6,2773.5,1.2012]
[1749700200002,0.72098,2773.5,2773.4,0.00540151]
[1749700200302,2.13755935,2773.5,2773.4,0.00540151]
[1749700200602,2.13755935,2773.5,2773.4,0.72641151]
[1749700200804,10.34535935,2773.5,2773.4,1.51e-06]
[1749700201000,5.34535935,2773.5,2773.4,1.51e-06]
[1749700202000,5.34535935,2773.5,2773.4,4.67500151]
[1749700205006,5.34535935,2773.5,2773.4,1.51e-06]
[1749700205404,5.34535935,2773.5,2773.4,0.06201871]
[1749700209401,5.34695651,2773.5,2773.4,0.06201871]
[1749700210398,6.14275651,2773.5,2773.4,0.06201871]
[1749700210602,7.40795651,2773.5,2773.4,0.06201871]
[1749700211411,12.40795651,2773.5,2773.4,8.71e-06]
[1749700212212,14.56272578,2773.5,2773.4,8.71e-06]
[1749700212407,14.56453389,2773.5,2773.4,8.71e-06]
[1749700212911,0.72114,2772.9,2772.8,4.675]
[1749700213207,6.42886651,2772.9,2772.5,4.675]
[1749700213509,0.72122,2772.6,2772.5,4.675]
[1749700213708,2.13939651,2772.6,2772.5,4.675]
[1749700214107,2.13939651,2772.6,2772.5,4.676]
[1749700215207,1.41817651,2772.6,2772.5,9.81434]
[1749700215412,0.72114,2772.9,2772.7,0.72118]
[1749700215606,0.7958,2773.5,2772.8,1.9677]
[1749700215910,0.72111,2773.0,2772.9,4.676]
[1749700216110,2.13910412,2773.0,2772.9,5.8853]
[1749700218613,0.72122,2772.6,2772.5,3.2078]
[1749700218814,0.72127,2772.4,2772.3,0.75742398]
[1749700219218,2.16404288,2772.4,2772.3,0.75742398]
[1749700220320,2.16404288,2772.4,2772.3,0.00362398]
[1749700221922,2.90634288,2772.4,2772.3,0.00362398]
[1749700222424,0.72137,2772.0,2771.9,7.8778]
[1749700222717,0.72133,2772.2,2772.0,0.72136]
[1749700223019,3.9501,2772.4,2771.9,8.6823]
[1749700223321,0.72136,2772.1,2771.9,8.6823]
[1749700223522,0.7213,2772.3,2771.9,8.6823]
[1749700223712,0.74771135,2772.4,2772.0,0.72136]
[1749700224020,1.44290999,2772.3,2772.2,0.72132]
[1749700224216,0.72668135,2772.4,2772.2,0.72132]
[1749700224416,6.45405192,2772.3,2771.5,4.671]
[1749700224613,4.65076192,2772.2,2771.5,4.671]
[1749700224811,1.44296192,2772.1,2771.6,1.2345]
[1749700225011,0.72141,2771.9,2771.7,0.72145]
[1749700225424,0.72142,2771.8,2771.7,0.72145]
[1749700225619,0.72142,2771.8,2771.7,17.199]
[1749700226117,1.8034,2772.1,2771.5,4.671]
[1749700226118,0.72148,2771.6,2771.5,4.671]
[1749700226322,0.72148,2771.6,2771.5,21.87]
[1749700226526,0.72152,2771.5,2771.3,5.48023]
[1749700226821,0.72152,2771.5,2771.4,4.671]
[1749700227725,0.72152,2771.5,2771.3,4.7587]
[1749700227726,0.72153,2771.4,2771.3,0.8039]
[1749700227926,0.72153,2771.4,2771.3,22.6749]
[1749700228726,0.72153,2771.4,2771.3,21.871]
[1749700228928,2.16497055,2771.4,2771.3,21.871]
[1749700229227,0.72158,2771.2,2771.1,1.2345]
[1749700229425,0.72158,2771.2,2771.1,23.1085]
[1749700231126,0.72152,2771.5,2771.1,26.3163]
[1749700231429,0.72153,2771.4,2771.2,1.93716]
[1749700231635,0.72152,2771.5,2771.3,1.93715]
[1749700231931,0.72148,2771.6,2771.4,0.72153]
[1749700232126,0.72148,2771.6,2771.5,4.672]
[1749700232433,2.16481101,2771.6,2771.5,4.672]
[1749700232731,0.72148,2771.6,2771.5,4.672]
[1749700233229,0.72147,2771.6,2771.5,4.672]
[1749700233530,0.72147,2771.6,2771.5,5.9684]
[1749700233531,2.16475655,2771.6,2771.5,5.9684]
[1749700235026,0.72147,2771.6,2771.5,6.7713]
[1749700236035,0.7661,2772.0,2771.5,6.7713]
[1749700236220,1.4432351,2771.9,2771.3,0.0620172]
[1749700236427,0.7215,2771.5,2771.4,21.874]
[1749700236629,0.7215,2771.5,2771.4,23.0948]
[1749700240834,0.72153,2771.4,2771.3,0.0620172]
[1749700241134,0.72153,2771.4,2771.3,21.9360172]
[1749700241336,0.72152,2771.5,2771.3,21.9360172]
[1749700241535,4.4308,2771.8,2771.3,22.6575572]
[1749700241828,2.16473321,2771.7,2771.3,21.9360172]
[1749700242032,1.44318507,2771.6,2771.4,1.2022]
[1749700242234,0.72149,2771.6,2771.5,0.72149]
[1749700242435,0.7215,2771.5,2771.4,1.92371]
[1749700242635,0.7215,2771.5,2771.4,23.79671]
[1749700243028,0.72148,2771.6,2771.5,0.72148]
[1749700243225,0.72148,2771.6,2771.4,23.0752]
[1749700243226,0.7215,2771.5,2771.4,23.79671]
[1749700243629,1.0101,2771.5,2771.4,23.79671]
[1749700243837,0.72153,2771.4,2771.3,0.7835672]
[1749700244038,0.72153,2771.4,2771.3,22.6565672]
[1749700244335,0.72153,2771.4,2771.3,21.9350172]
[1749700244935,0.72153,2771.4,2771.3,22.6565672]
[1749700245629,0.72153,2771.4,2771.3,21.9350172]
[1749700246039,0.72153,2771.4,2771.3,22.6565572]
[1749700246239,2.16478701,2771.4,2771.3,21.9350172]
[1749700246442,2.16478701,2771.4,2771.3,4.7350172]
[1749700246834,2.16478701,2771.4,2771.3,21.9340172]
[1749700247041,2.16478701,2771.4,2771.3,0.0620172]
[1749700247241,2.16478701,2771.4,2771.3,22.6555672]
[1749700247438,2.16478701,2771.4,2771.3,21.9340172]
[1749700247640,2.16478701,2771.4,2771.3,0.7835672]
[1749700247938,2.16478701,2771.4,2771.3,22.6545672]
[1749700249432,2.16478701,2771.4,2771.3,0.7835672]
[1749700249632,1.44325701,2771.4,2771.3,22.6475672]
[1749700250139,2.16478701,2771.4,2771.3,22.6475672]
[1749700251836,1.44325701,2771.4,2771.3,22.6475672]
[1749700252036,1.44325701,2771.4,2771.3,27.6475672]
[1749700252437,0.2886,2771.5,2771.4,0.72153]
[1749700252645,1.73170699,2771.5,2771.4,5.17763]
[1749700256239,1.73170691,2771.5,2771.4,5.17763]
[1749700256740,0.2886,2771.5,2771.4,5.17763]
[1749700256940,1.73171764,2771.5,2771.4,27.03763]
[1749700257742,1.73171764,2771.5,2771.4,5.17763]
[1749700258539,1.73171764,2771.5,2771.4,27.03663]
[1749700258737,1.73171764,2771.5,2771.4,25.78833]
[1749700259737,1.73171764,2771.5,2771.4,3.92933]
[1749700260142,1.73171764,2771.5,2771.4,25.78733]
[1749700260942,0.14210395,2771.5,2771.4,72.0529]
[1749700261244,0.72669135,2772.4,2772.3,0.72129]
[1749700261438,0.72669135,2772.4,2772.3,21.857]
[1749700262245,0.00541135,2772.4,2772.3,22.57829]
[1749700263545,0.00541135,2772.4,2772.3,22.57629]
[1749700266148,0.00541135,2772.4,2772.3,22.6383072]
[1749700272356,0.00541135,2772.4,2772.3,0.0620172]
[1749700272560,0.00541135,2772.4,2772.3,22.6313072]
[1749700280256,0.00541135,2772.4,2772.3,27.6313072]
[1749700280758,0.00541135,2772.4,2772.3,68.4313072]
[1749700282467,0.00541135,2772.4,2772.3,63.4313072]
[1749700284961,0.00541135,2772.4,2772.3,68.4313072]
[1749700285956,1.80251,2773.5,2772.3,68.4313072]
[1749700285957,3.2078,2774.2,2773.6,0.72094]
[1749700286160,1.2941,2773.9,2773.7,21.826]
[1749700286361,0.72088,2773.9,2773.8,22.5469]
[1749700286561,1.44208998,2773.9,2773.8,25.0338]
[1749700286760,1.44208998,2773.9,2773.8,25.7547]
[1749700287361,0.72085,2774.0,2773.9,0.72086]
[1749700287556,2.16280353,2774.0,2773.8,25.0338]
[1749700287762,1.44195353,2773.9,2773.8,25.7547]
[1749700287961,2.16283353,2773.9,2773.8,25.7547]
[1749700288159,1.44195353,2773.9,2773.8,25.7547]
[1749700288454,0.72087,2774.0,2773.8,25.7547]
[1749700288954,0.72087,2774.0,2773.9,0.72088]
[1749700289159,2.16278363,2774.0,2773.8,25.0338]
[1749700289354,0.72088,2773.9,2773.8,25.75469]
[1749700289560,0.72088,2773.9,2773.8,25.0338]
[1749700293269,0.72088,2773.9,2773.8,3.2078]
[1749700293467,0.72088,2773.9,2773.8,25.0258]
[1749700293666,0.72093,2773.7,2773.6,21.81741135]
[1749700293867,2.16309426,2773.7,2773.6,26.47141135]
[1749700294063,7.16309426,2773.7,2773.6,26.47141135]
[1749700294569,7.16309426,2773.7,2773.6,43.63441135]
[1749700294767,7.16309426,2773.7,2773.6,21.81741135]
[1749700295265,0.72106,2773.2,2773.1,3.2078]
[1749700295471,2.16345416,2773.2,2773.1,21.817]
[1749700295776,0.72114,2772.9,2772.8,25.0158]
[1749700295974,0.72114,2772.9,2772.8,46.8318]
[1749700296361,0.72114,2772.9,2772.8,3.2078]
[1749700296673,0.72114,2772.9,2772.8,25.0238]
[1749700297473,0.72112,2773.0,2772.9,0.72114]
[1749700297875,0.72112,2773.0,2772.9,21.817]
[1749700299963,1.93312,2773.0,2772.9,21.817]
[1749700300168,0.72114,2772.9,2772.8,3.2078]
[1749700300372,1.95414,2772.9,2772.8,25.0238]
[1749700301073,1.95414,2772.9,2772.8,3.2078]
[1749700301271,1.95414,2772.9,2772.8,25.0238]
[1749700301673,1.95414,2772.9,2772.8,25.74496]
[1749700301863,1.95414,2772.9,2772.8,25.0228]
[1749700302069,1.95414,2772.9,2772.8,20.3678]
[1749700302268,1.95414,2772.9,2772.8,25.0228]
[1749700302575,0.72113,2773.0,2772.8,25.0228]
[1749700302769,0.72114,2772.9,2772.8,25.0228]
[1749700303171,0.72114,2772.9,2772.8,3.2078]
[1749700303571,0.72114,2772.9,2772.8,25.0228]
[1749700304378,0.72114,2772.9,2772.8,25.74395]
[1749700306073,0.72113,2773.0,2772.9,0.72112]
[1749700306683,0.7852,2773.1,2773.0,0.72111]
[1749700306867,2.2275785,2773.1,2773.0,17.87911]
[1749700307180,2.9486585,2773.1,2773.0,17.87911]
[1749700308977,2.2275785,2773.1,2772.8,3.92895]
[1749700309172,0.72114,2772.9,2772.8,3.2078]
[1749700309377,0.72114,2772.9,2772.8,25.0188]
[1749700309687,0.72114,2772.9,2772.8,7.8628]
[1749700309877,0.72114,2772.9,2772.8,25.0188]
[1749700310077,0.72114,2772.9,2772.8,3.2078]
[1749700310278,0.72114,2772.9,2772.8,25.0088]
[1749700312184,0.72114,2772.9,2772.8,3.2078]
[1749700312383,0.72114,2772.9,2772.8,21.801]
[1749700315179,2.163692,2772.9,2772.8,21.801]
[1749700315381,0.72116,2772.8,2772.7,21.81]
[1749700315581,2.163712,2772.8,2772.7,43.608]
[1749700315883,4.199612,2772.8,2772.7,21.81]
[1749700316086,4.199612,2772.8,2772.7,43.608]
[1749700316282,4.199612,2772.8,2772.7,21.81]
[1749700316483,2.917512,2772.8,2772.7,43.607]
[1749700316679,2.917512,2772.8,2772.7,21.81]
[1749700316879,2.917512,2772.8,2772.7,43.607]
[1749700317688,2.917512,2772.8,2772.7,44.32819]
[1749700317887,1.442552,2772.8,2772.7,44.32819]
[1749700318087,0.72116,2772.8,2772.7,44.32817]
[1749700318389,2.16368832,2772.8,2772.7,44.32819]
[1749700320383,2.16368832,2772.8,2772.7,21.81]
[1749700320583,2.16368832,2772.8,2772.7,44.32619]
[1749700320778,2.16368832,2772.8,2772.7,22.53119]
[1749700320987,2.16368832,2772.8,2772.7,44.32619]
[1749700321590,2.16368832,2772.8,2772.7,26.455]
[1749700321889,2.16368832,2772.8,2772.7,43.605]
[1749700322990,2.16368832,2772.8,2772.7,21.81]
[1749700323287,2.16368832,2772.8,2772.7,26.455]
[1749700323588,2.16368832,2772.8,2772.7,43.604]
[1749700324889,2.16368832,2772.8,2772.7,43.6660172]
[1749700326695,1.44252832,2772.8,2772.7,44.3872072]
[1749700327596,0.72103,2773.3,2773.2,0.72104]
[1749700327796,0.72103,2773.3,2773.2,22.51204]
[1749700327996,0.72103,2773.3,2773.2,21.791]
[1749700333604,0.72103,2773.3,2773.0,0.7211]
[1749700333605,0.72106,2773.2,2773.1,4.645]
[1749700333805,2.72066,2773.2,2773.1,21.786]
[1749700337511,2.72066,2773.2,2773.1,4.645]
[1749700337711,2.72066,2773.2,2773.1,21.784]
[1749700338714,2.72066,2773.2,2773.1,21.782]
[1749700339418,6.9996,2773.2,2772.7,21.8720172]
[1749700339617,0.72116,2772.8,2772.7,21.8720172]
[1749700339913,0.72116,2772.8,2772.7,43.6530172]
[1749700340115,0.72116,2772.8,2772.7,43.591]
[1749700340309,0.72116,2772.8,2772.7,26.455]
[1749700340515,0.72116,2772.8,2772.7,43.591]
[1749700340919,0.72116,2772.8,2772.2,3.2078]
[1749700340920,1.80316,2772.5,2772.2,3.2078]
[1749700341218,1.80344,2772.0,2771.1,17.85658]
[1749700341520,3.2078,2771.4,2771.1,17.135]
[1749700341812,0.72158,2771.2,2771.1,17.9089]
[1749700342019,3.2078,2771.4,2771.1,17.135]
[1749700342218,0.72162,2771.1,2770.9,0.7862]
[1749700342418,0.72162,2771.1,2771.0,17.135]
[1749700342612,0.72163,2771.0,2770.9,5.4182]
[1749700342917,0.72163,2771.0,2770.9,17.9242]
[1749700343416,0.72166,2770.9,2770.8,4.633]
[1749700343620,5.37305791,2770.9,2770.8,21.77]
[1749700343912,4.65139791,2770.9,2770.5,4.633]
[1749700344111,3.92953,2770.6,2770.5,4.633]
[1749700344316,3.92953,2770.6,2770.5,21.77]
[1749700344717,3.2078,2770.6,2770.5,22.49176]
[1749700344912,3.92953,2770.6,2770.5,21.77]
[1749700345709,3.92953,2770.6,2770.5,4.633]
[1749700346017,3.92953,2770.6,2770.2,5.4063]
[1749700346324,3.2078,2770.3,2770.2,46.92814]
[1749700346621,3.92961,2770.3,2770.2,22.5423]
[1749700346815,3.2078,2770.3,2770.2,0.7733]
[1749700347020,3.2078,2770.3,2770.2,17.9123]
[1749700347322,0.72184,2770.2,2770.1,4.634]
[1749700347525,0.72184,2770.2,2770.1,21.773]
[1749700348114,0.2887,2770.2,2770.1,22.49486]
[1749700348922,0.2887,2770.2,2770.1,22.49786]
[1749700349115,1.01054,2770.2,2770.1,21.776]
[1749700349420,0.2887,2770.2,2770.0,22.53288]
[1749700349720,1.01055,2770.2,2770.1,17.141]
[1749700350116,0.72186,2770.1,2770.0,4.635]
[1749700350514,0.72186,2770.1,2770.0,21.776]
[1749700350716,0.2887,2770.2,2770.1,0.72186]
[1749700350915,1.01054,2770.2,2770.1,0.72186]
[1749700351114,1.01054,2770.2,2770.0,21.776]
[1749700351320,0.72186,2770.1,2770.0,21.776]
[1749700352620,0.72186,2770.1,2770.0,22.49789]
[1749700352922,0.72186,2770.1,2770.0,21.776]
[1749700353115,1.01055,2770.2,2770.0,22.49789]
[1749700353316,0.72186,2770.1,2770.0,21.776]
[1749700353618,0.72186,2770.1,2770.0,22.49789]
[1749700353814,0.72186,2770.1,2770.0,21.777]
[1749700354217,0.72186,2770.1,2770.0,4.635]
[1749700354418,0.72186,2770.1,2770.0,21.8390172]
[1749700355416,0.72186,2770.1,2770.0,0.0620172]
[1749700355918,1.91546,2770.1,2770.0,0.0620172]
[1749700356220,0.72186,2770.1,2770.0,0.0620172]
[1749700358525,2.16589875,2770.1,2770.0,0.0620172]
[1749700359021,1.8048,2769.9,2769.2,17.143]
[1749700359224,0.72201,2769.6,2769.4,0.72204]
[1749700359428,3.92979,2769.7,2769.2,18.3574]
[1749700359729,0.72201,2769.6,2769.5,0.72201]
[1749700359925,0.72202,2769.5,2769.4,0.72203]
[1749700360130,0.72203,2769.5,2769.4,0.72204]
[1749700360724,0.72205,2769.4,2769.3,1.93646]
[1749700360928,0.72204,2769.5,2769.4,0.72204]
[1749700361424,0.72205,2769.4,2769.3,17.144]
[1749700361630,0.72205,2769.4,2769.3,17.86607]
[1749700362425,0.72205,2769.4,2769.3,17.144]
[1749700362630,2.16632826,2769.4,2769.3,17.144]
[1749700363329,5.37412826,2769.4,2769.3,17.86607]
[1749700363525,5.37412826,2769.4,2769.3,17.144]
[1749700363734,4.65207826,2769.4,2769.2,5.8514]
[1749700363928,3.92985,2769.4,2769.3,17.86507]
[1749700364230,5.37414508,2769.4,2769.3,19.12477]
[1749700366430,5.37414508,2769.4,2769.3,1.2597]
[1749700366627,0.7222,2768.8,2768.7,0.647]
[1749700366833,5.37429508,2768.8,2768.7,0.647]
[1749700368236,5.37429508,2768.8,2768.7,5.284]
[1749700368735,5.37429508,2768.8,2768.7,0.647]
[1749700368939,5.37429508,2768.8,2768.7,5.284]
[1749700369531,1.44429508,2768.8,2768.7,11.0682472]
[1749700370232,3.2078,2769.1,2769.0,0.72215]
[1749700370436,3.2078,2769.1,2769.0,17.86815]
[1749700371239,3.2078,2769.1,2769.0,23.69885]
[1749700371937,3.2078,2769.1,2769.0,22.50015]
[1749700372434,0.5416,2769.2,2769.0,21.778]
[1749700372644,1.26372,2769.2,2769.1,0.72212]
[1749700373137,0.5416,2769.2,2769.1,0.72212]
[1749700374638,1.2637,2769.2,2769.1,0.72212]
[1749700374939,0.72212,2769.1,2769.0,22.50014]
[1749700375142,0.5416,2769.2,2769.0,21.778]
[1749700375440,0.72212,2769.1,2769.0,22.50015]
[1749700376033,0.72212,2769.1,2769.0,21.778]
[1749700376238,0.5416,2769.2,2769.1,0.72212]
[1749700376638,0.72212,2769.1,2769.0,22.50013]
[1749700377640,0.72212,2769.1,2769.0,21.778]